fUSD/lending_fUSD_20251231
["ID","MTS","AMOUNT","RATE_DAILY","PERIOD"]
[400194249,1767186591759,-446.27097378,0.00012441,2]
[400194250,1767186591849,-53.72902622,0.00012441,2]
[400194251,1767186591879,-184.38102748,0.00012441,2]
[400194252,1767186591908,-227.0512218,0.00012441,2]
[400194253,1767186591955,-500.0,0.00012441,2]
[400194254,1767186591998,-500.0,0.00012441,2]
[400194255,1767186592030,-500.0,0.00012441,2]
[400194256,1767186592071,-500.0,0.00012441,2]
[400194257,1767186592101,-500.0,0.00012441,2]
[400194258,1767186592140,-500.0,0.00012441,2]
[400194259,1767186592177,-500.0,0.00012441,2]
[400194260,1767186592208,-210.88472151,0.00012441,2]
[400194261,1767186592243,-500.0,0.00012441,2]
[400194262,1767186592277,-147.91800598,0.00012441,2]
[400194263,1767186592317,-352.08199402,0.00012441,2]
[400194264,1767186592348,-500.0,0.00012441,2]
[400194265,1767186592389,-500.0,0.00012441,2]
[400194266,1767186592424,-500.0,0.00012441,2]
[400194267,1767186592455,-500.0,0.00012441,2]
[400194268,1767186592491,-500.0,0.00012441,2]
[400194269,1767186592526,-590.58359177,0.00012441,2]
[400194270,1767186592562,-500.0,0.00012441,2]
[400194271,1767186592597,-500.0,0.00012441,2]
[400194272,1767186592634,-500.0,0.00012441,2]
[400194273,1767186592745,-500.0,0.00012441,2]
[400194274,1767186592780,-500.0,0.00012441,2]
[400194275,1767186592819,-500.0,0.00012441,2]
[400194276,1767186592855,-500.0,0.00012441,2]
[400194277,1767186592889,-500.0,0.00012441,2]
[400194278,1767186592922,-500.0,0.00012441,2]
[400194279,1767186592956,-500.0,0.00012441,2]
[400194280,1767186592990,-500.0,0.00012441,2]
[400194281,1767186593024,-500.0,0.00012441,2]
[400194282,1767186593058,-500.0,0.00012441,2]
[400194283,1767186593914,-90.77691922,0.00012441,2]
[400194284,1767186593936,-409.22308078,0.00012441,2]
[400194285,1767186593946,-90.77691922,0.00012441,2]
[400194286,1767186593963,-0.01,0.00012441,2]
[400194287,1767186594071,-409.21308078,0.00012441,2]
[400194288,1767186594110,-500.0,0.00012441,2]
[400194289,1767186594150,-500.0,0.00012441,2]
[400194290,1767186594186,-500.0,0.00012441,2]
[400194291,1767186594223,-500.0,0.00012441,2]
[400194292,1767186594258,-500.0,0.00012441,2]
[400194293,1767186594294,-500.0,0.00012441,2]
[400194294,1767186594330,-539.58035812,0.00012441,2]
[400194295,1767186594365,-500.0,0.00012441,2]
[400194296,1767186594604,-500.0,0.00012441,2]
[400194297,1767186594743,-500.0,0.00012441,2]
[400194298,1767186594778,-500.0,0.00012441,2]
[400194299,1767186594811,-500.0,0.00012441,2]
[400194300,1767186594843,-500.0,0.00012441,2]
[400194301,1767186601251,300.0,0.00012441,2]
[400194302,1767186601298,1200.0,0.00012441,2]
[400194303,1767186602405,300.0,0.00012441,2]
[400194304,1767186603341,252.0,0.00012442,2]
[400194305,1767186611586,208.51,0.00012371,2]
[400194309,1767186631475,-1060.92728506,0.00012442,2]
[400194310,1767186631487,-4691.93207833,0.00012442,2]
[400194311,1767186631534,-3124.78462949,0.00012442,2]
[400194312,1767186631546,-1794.47750331,0.00012442,2]
[400194313,1767186631557,-824.83,0.00012442,2]
[400194314,1767186631591,-4588.46274898,0.00012442,2]
[400194315,1767186631603,-477.97880591,0.00012442,2]
[400194316,1767186631625,-990.02398659,0.00012442,2]
[400194317,1767186631643,-2471.96661148,0.00012442,2]
[400194318,1767186631655,-18754.14156672,0.00012442,2]
[400194319,1767186631667,-860.0,0.00012442,2]
[400194320,1767186631678,-1342.64096061,0.00012442,2]
[400194321,1767186631690,-23016.73611325,0.00012442,2]
[400194322,1767186631702,-28250.51363834,0.00012442,2]
[400194323,1767186631714,-344.81,0.00012442,2]
[400194324,1767186631726,-282.33286881,0.00012442,2]
[400194325,1767186631737,-2010.45162671,0.00012442,2]
[400194326,1767186631757,-2354.96308394,0.00012442,2]
[400194334,1767186637771,-1443.45977058,0.00012442,2]
[400194335,1767186637791,-30868.43746983,0.00012442,2]
[400194336,1767186637802,-3739.14970789,0.00012442,2]
[400194380,1767186638246,940.89978788,0.00012351,2]
[400194427,1767186639684,-1375.598704,0.00012442,2]
[400194428,1767186639741,-644.20590704,0.00012442,2]
[400194429,1767186639754,-3828.86735665,0.00012442,2]
[400194430,1767186639766,-5678.50813704,0.00012442,2]
[400194431,1767186639882,-55.95011539,0.00012442,2]
[400194432,1767186639894,-327.65371181,0.00012442,2]
[400194433,1767186639910,-1759.8369796,0.00012442,2]
[400194434,1767186640442,-1.7e-07,0.00012442,2]
[400194440,1767186643294,-11005.80571545,0.00012442,2]
[400194443,1767186645623,-291.24330895,0.00012442,2]
[400194445,1767186661452,500.0,0.00043184,120]
[400194446,1767186665161,511.096145,0.00012379,2]
[400194447,1767186687900,1036.6218,0.00012342,2]
[400194448,1767186693493,2657.547,0.00012193,2]
[400194449,1767186693538,161.71,0.00012193,2]
[400194450,1767186701662,159.16147998,0.00043184,120]
[400194451,1767186710216,-898.35079112,0.00012442,2]
[400194452,1767186711899,-553.85144253,0.00012442,2]
[400194453,1767186713335,-206.26627591,0.00012442,2]
[400194454,1767186716481,166.66,0.00012329,2]
[400194455,1767186717090,-207.42834574,0.00012442,2]
[400194456,1767186717761,2264.96526712,0.00012347,2]
[400194457,1767186717787,4012.25312272,0.00012347,2]
[400194458,1767186718451,-243.80804706,0.00012442,2]
[400194459,1767186719936,-300.0,0.00012442,2]
[400194460,1767186721260,300.0,0.00012441,2]
[400194461,1767186722599,300.0,0.00012441,2]
[400194462,1767186722763,150.0,0.00012441,2]
[400194463,1767186723093,-308.85630062,0.00012442,2]
[400194464,1767186724609,-646.14855747,0.00012442,2]
[400194465,1767186724907,151.0,0.00012442,2]
[400194466,1767186725547,151.0,0.00012442,2]
[400194467,1767186726166,151.0,0.00012442,2]
[400194468,1767186726793,151.0,0.00012442,2]
[400194469,1767186727415,153.70166196,0.00012442,2]
[400194470,1767186727747,-159.44506256,0.00012442,2]
[400194471,1767186730379,-363.33764111,0.00012442,2]
[400194472,1767186733772,-311.51671462,0.00012442,2]
[400194473,1767186735348,-279.48633976,0.00012442,2]
[400194474,1767186736542,2203.553,0.00012342,2]
[400194475,1767186738492,-192.50448682,0.00012442,2]
[400194476,1767186778756,627.26652526,0.00012347,2]
[400194477,1767186781435,300.0,0.00012441,2]
[400194478,1767186782525,500.0,0.00012342,2]
[400194479,1767186782568,300.0,0.00013,3]
[400194480,1767186788059,354.47941879,0.00012347,2]
[400194481,1767186790093,325.80600899,0.00012441,2]
[400194482,1767186790807,168.95026228,0.00012441,2]
[400194483,1767186790832,331.28238397,0.00012441,2]
[400194484,1767186792167,610.0,0.00012441,2]
[400194485,1767186793737,1129.76340308,0.0003,120]
[400194486,1767186806633,396.20713888,0.00012347,2]
[400194488,1767186837840,8662.52047715,0.00012342,2]
[400194489,1767186837868,8153.95672285,0.00012342,2]
[400194490,1767186858438,1846.05327715,0.00012442,2]
[400194491,1767186858464,10000.01,0.00012442,2]
[400194492,1767186858487,10000.01,0.00012442,2]
[400194493,1767186858512,10000.01,0.00012442,2]
[400194494,1767186858537,10000.01,0.00012442,2]
[400194495,1767186858561,10000.01,0.00012442,2]
[400194496,1767186858585,10000.01,0.00012442,2]
[400194497,1767186858816,10000.01,0.00012442,2]
[400194498,1767186858843,10000.01,0.00012442,2]
[400194499,1767186858869,10000.01,0.00012442,2]
[400194500,1767186877981,-215.15,0.00011956,2]
[400194501,1767186887085,-1044.7741,0.00012342,2]
[400194502,1767186893239,-7480.1618,0.00012442,2]
[400194503,1767186896136,-10000.01,0.00012442,2]
[400194504,1767186899139,-10000.01,0.00012442,2]
[400194505,1767186908505,1976.450204,7.945e-05,2]
[400194506,1767186935218,-344.18978046,0.00011694,2]
[400194507,1767186938951,-174.72569709,0.00011694,2]
[400194508,1767186941124,-710.566,0.00011694,2]
[400194509,1767186943563,-333.9659742,0.00011694,2]
[400194510,1767186945719,-299.3087587,0.00011694,2]
[400194511,1767186947264,-189.02492322,0.00011694,2]
[400194512,1767186949427,-199.19494015,0.00011694,2]
[400194513,1767186952404,-359.91913793,0.00011694,2]
[400194514,1767186954519,-246.82755494,0.00011694,2]
[400194515,1767186955891,-166.66,0.00011694,2]
[400194516,1767186958219,-194.76532127,0.00011694,2]
[400194517,1767186960131,-166.93819676,0.00011694,2]
[400194518,1767186962305,-200.13488385,0.00011694,2]
[400194519,1767186962439,500.0,0.00043184,120]
[400194521,1767186964480,-183.45862217,0.00011694,2]
[400194522,1767186966411,-232.70570855,0.00011694,2]
[400194523,1767186967950,-250.0,0.00011694,2]
[400194525,1767187037058,192.50448682,0.00011649,2]
[400194526,1767187124333,160.0,0.00043184,30]
[400194527,1767187124401,160.0,0.00043184,30]
[400194528,1767187124468,160.0,0.00043184,30]
[400194529,1767187124540,160.0,0.00043184,30]
[400194530,1767187124607,160.0,0.00043184,30]
[400194531,1767187124686,160.0,0.00043184,30]
[400194532,1767187124758,160.0,0.00043184,30]
[400194533,1767187124829,160.0,0.00043184,30]
[400194534,1767187124914,160.0,0.00043184,30]
[400194535,1767187124984,160.0,0.00043184,30]
[400194536,1767187125326,160.0,0.00043184,30]
[400194537,1767187125383,160.0,0.00043184,30]
[400194538,1767187165363,-155.59450071,0.00011694,2]
[400194539,1767187165398,-300.0,0.00011694,2]
[400194540,1767187165432,-203.94309107,0.00011695,2]
[400194541,1767187165463,-431.54992388,0.00011749,2]
[400194542,1767187165494,-300.0,0.00011936,2]
[400194543,1767187165526,-300.0,0.00011936,2]
[400194544,1767187165570,-200.0,0.00012264,2]
[400194545,1767187165608,-506.754331,0.00012279,2]
[400194546,1767187165641,-300.0,0.00012341,2]
[400194547,1767187165674,-1200.0,0.00012341,2]
[400194548,1767187166029,-35.37161586,0.00012342,2]
[400194549,1767187171446,-3206.65978414,0.00012342,2]
[400194550,1767187171495,-3586.69043172,0.00012342,2]
[400194551,1767187177542,-1472.27111331,0.00012342,2]
[400194552,1767187177572,-500.0,0.00012342,2]
[400194553,1767187177603,-2022.12837338,0.00012342,2]
[400194554,1767187177663,-2011.21102662,0.00012342,2]
[400194565,1767187204024,285.58878555,0.00043183,30]
[400194566,1767187220183,-211.47783118,0.00011595,2]
[400194567,1767187222216,-235.73486716,0.00011595,2]
[400194568,1767187262047,500.0,0.00043183,120]
[400194576,1767187289088,10000.0,0.00043183,30]
[400194577,1767187293011,500.0,0.00011498,2]
[400194578,1767187369056,150.0,0.00011438,2]
[400194579,1767187394603,-52.78730166,0.00011595,2]
[400194580,1767187394636,-447.212698,0.0001216,2]
[400194581,1767187394669,-500.0,0.00012166,2]
[400194582,1767187394700,-150.0,0.00012166,2]
[400194583,1767187394732,-500.0,0.00012166,2]
[400194584,1767187394764,-150.0,0.00012166,2]
[400194585,1767187394797,-1200.0,0.00012166,2]
[400194586,1767187394829,-200.0,0.00012167,2]
[400194587,1767187394860,-500.0,0.00012167,2]
[400194588,1767187394891,-150.0,0.00012167,2]
[400194589,1767187394922,-150.0,0.00012167,2]
[400194590,1767187395243,-150.0,0.00012167,2]
[400194591,1767187395280,-150.0,0.00012167,2]
[400194592,1767187395312,-500.0,0.00012167,2]
[400194593,1767187395342,-150.0,0.00012167,2]
[400194594,1767187400582,-500.0,0.00012221,2]
[400194595,1767187400613,-150.0,0.00012221,2]
[400194596,1767187400645,-500.0,0.00012221,2]
[400194597,1767187400692,-150.0,0.00012221,2]
[400194598,1767187400725,-219.0,0.00012222,2]
[400194599,1767187400758,-200.0,0.00012222,2]
[400194600,1767187400790,-500.0,0.00012222,2]
[400194601,1767187400823,-500.0,0.00012222,2]
[400194602,1767187400855,-150.0,0.00012222,2]
[400194603,1767187400887,-281.0,0.00012276,2]
[400194604,1767187400919,-150.0,0.00012276,2]
[400194605,1767187400951,-547.13609629,0.00012276,2]
[400194606,1767187400982,-150.0,0.00012276,2]
[400194607,1767187401013,-500.0,0.00012277,2]
[400194608,1767187401042,-200.0,0.00012277,2]
[400194609,1767187401073,-150.0,0.00012277,2]
[400194610,1767187401108,-150.0,0.0001233,2]
[400194614,1767187406774,-150.0,0.0001233,2]
[400194615,1767187406808,-500.0,0.00012331,2]
[400194616,1767187406839,-150.0,0.00012331,2]
[400194617,1767187406868,-151.0,0.00012337,2]
[400194618,1767187452223,548.81,0.0001155,2]
[400194619,1767187461283,150.0,0.00012165,2]
[400194620,1767187461429,250.0,0.0001222,2]
[400194621,1767187463101,150.0,0.00012165,2]
[400194622,1767187463276,150.0,0.0001222,2]
[400194623,1767187463371,150.0,0.00012165,2]
[400194624,1767187463524,150.0,0.0001222,2]
[400194625,1767187464196,250.0,0.00012165,2]
[400194631,1767187464962,200.0,0.00012165,2]
[400194633,1767187467383,150.0,0.00012165,2]
[400194634,1767187467522,150.0,0.0001222,2]
[400194635,1767187470816,-300.0,0.00012241,2]
[400194636,1767187470847,-379.27042923,0.00012242,2]
[400194637,1767187470878,-3899.53071705,0.00012242,2]
[400194638,1767187476776,-4144.2077357,0.0001224,2]
[400194639,1767187483091,-1711.5945286,0.0001224,2]
[400194640,1767187483123,-842.40770744,0.00012242,2]
[400194641,1767187483154,-242.0,0.00012275,2]
[400194642,1767187483185,-265.44379661,0.00012275,2]
[400194643,1767187483216,-150.0,0.00012275,2]
[400194644,1767187483245,-150.0,0.00012329,2]
[400194645,1767187483274,-150.0,0.00012339,2]
[400194646,1767187483305,-500.0,0.00012339,2]
[400194647,1767187483339,-323.34103098,0.00012339,2]
[400194648,1767187483371,-422.03789437,0.00012339,2]
[400194649,1767187483606,-336.360084,0.00012339,2]
[400194663,1767187531966,-4270.51344918,0.00012242,2]
[400194664,1767187531994,-1458.98310164,0.00012242,2]
[400194665,1767187534803,-418.1776835,0.00012242,2]
[400194666,1767187534836,-300.0,0.00012338,2]
[400194667,1767187534872,-1200.0,0.00012338,2]
[400194668,1767187534905,-300.0,0.00012338,2]
[400194669,1767187534940,-500.0,0.00012339,2]
[400194670,1767187534972,-163.639916,0.00012339,2]
[400194671,1767187535006,-500.0,0.00012339,2]
[400194672,1767187535037,-190.5327876,0.00012339,2]
[400194673,1767187535071,-500.0,0.00012339,2]
[400194674,1767187535106,-500.0,0.00012339,2]
[400194675,1767187535140,-408.33076829,0.00012339,2]
[400194676,1767187535234,10000.0,0.00043183,30]
[400194677,1767187535398,-38.64768922,0.00012339,2]
[400194678,1767187540848,-451.6688548,0.00012339,2]
[400194679,1767187540880,-500.0,0.00012339,2]
[400194680,1767187540911,-503.42768977,0.00012339,2]
[400194681,1767187540967,-500.0,0.00012339,2]
[400194682,1767187541007,-500.0,0.00012339,2]
[400194683,1767187541040,-500.0,0.00012339,2]
[400194684,1767187541077,-500.0,0.00012339,2]
[400194685,1767187541108,-500.0,0.00012339,2]
[400194686,1767187541147,-500.0,0.00012339,2]
[400194687,1767187541181,-500.0,0.00012339,2]
[400194688,1767187541395,-89.81691086,0.00012339,2]
[400194689,1767187561441,500.0,0.00043183,120]
[400194690,1767187574754,-344.995708,0.00012277,2]
[400194691,1767187574792,-250.0,0.00012307,2]
[400194692,1767187574826,-300.0,0.00012338,2]
[400194693,1767187574865,-410.18308914,0.00012339,2]
[400194694,1767187574906,-500.0,0.00012339,2]
[400194695,1767187574939,-247.11688542,0.00012339,2]
[400194696,1767187574977,-381.5550319,0.00012339,2]
[400194697,1767187575016,-500.0,0.00012339,2]
[400194698,1767187575053,-500.0,0.00012339,2]
[400194699,1767187575090,-500.0,0.00012339,2]
[400194700,1767187575135,-500.0,0.00012339,2]
[400194701,1767187575174,-500.0,0.00012339,2]
[400194702,1767187575307,-500.0,0.00012339,2]
[400194703,1767187575345,-500.0,0.00012339,2]
[400194704,1767187575384,-500.0,0.00012339,2]
[400194705,1767187575426,-500.0,0.00012339,2]
[400194706,1767187575467,-500.0,0.00012339,2]
[400194707,1767187575499,-249.67965393,0.00012339,2]
[400194708,1767187575543,-736.30463509,0.00012339,2]
[400194709,1767187575588,-736.30463509,0.00012339,2]
[400194710,1767187575629,-736.30463509,0.00012339,2]
[400194711,1767187575915,-736.30463509,0.00012339,2]
[400194712,1767187575968,-736.30463509,0.00012339,2]
[400194713,1767187576009,-736.30463509,0.00012339,2]
[400194714,1767187576049,-736.30463509,0.00012339,2]
[400194715,1767187576089,-736.30463509,0.00012339,2]
[400194716,1767187576128,-736.30463509,0.00012339,2]
[400194717,1767187576167,-428.04974383,0.00012339,2]
[400194718,1767187576661,-308.25489126,0.00012339,2]
[400194719,1767187576672,-215.13145268,0.00012339,2]
[400194720,1767187577534,-521.17318241,0.00012339,2]
[400194721,1767187577574,-736.30463509,0.00012339,2]
[400194722,1767187577613,-736.30463509,0.00012339,2]
[400194723,1767187577656,-736.30463509,0.00012339,2]
[400194724,1767187577701,-736.30463509,0.00012339,2]
[400194725,1767187577747,-736.30463509,0.00012339,2]
[400194726,1767187577786,-736.30463509,0.00012339,2]
[400194727,1767187577884,-736.30463509,0.00012339,2]
[400194728,1767187577925,-736.30463509,0.00012339,2]
[400194729,1767187577965,-736.30463509,0.00012339,2]
[400194730,1767187578004,-736.30463509,0.00012339,2]
[400194731,1767187578043,-736.30463509,0.00012339,2]
[400194732,1767187578084,-736.30463509,0.00012339,2]
[400194733,1767187578123,-428.04974383,0.00012339,2]
[400194734,1767187578355,-308.25489126,0.00012339,2]
[400194735,1767187578365,-122.0080141,0.00012339,2]
[400194736,1767187580641,-500.0,0.00012339,2]
[400194737,1767187580682,-614.29662099,0.00012339,2]
[400194738,1767187580727,-736.30463509,0.00012339,2]
[400194739,1767187580783,-736.30463509,0.00012339,2]
[400194740,1767187580825,-736.30463509,0.00012339,2]
[400194741,1767187580868,-736.30463509,0.00012339,2]
[400194742,1767187580911,-736.30463509,0.00012339,2]
[400194743,1767187581023,-736.30463509,0.00012339,2]
[400194744,1767187581062,-736.30463509,0.00012339,2]
[400194745,1767187581303,-736.30463509,0.00012339,2]
[400194746,1767187581345,-736.30463509,0.00012339,2]
[400194747,1767187581385,-736.30463509,0.00012339,2]
[400194748,1767187581424,-736.30463509,0.00012339,2]
[400194749,1767187581464,-428.04974383,0.00012339,2]
[400194750,1767187581723,-308.25489126,0.00012339,2]
[400194751,1767187581734,-428.04974383,0.00012339,2]
[400194752,1767187654883,199.999999,0.00043183,120]
[400194753,1767187664132,151.82060705,0.00043183,120]
[400194754,1767187679810,-278.78512234,0.00012242,2]
[400194755,1767187679845,-300.0,0.00012338,2]
[400194756,1767187679884,-150.0,0.00012338,2]
[400194757,1767187685384,2753.13,5.84e-05,2]
[400194758,1767187685580,2753.13,6.147e-05,2]
[400194759,1767187685814,2753.13,6.454e-05,2]
[400194760,1767187686007,283.04975532,6.762e-05,2]
[400194761,1767187686034,2470.08024468,6.762e-05,2]
[400194762,1767187686223,2728.76116495,7.069e-05,2]
[400194763,1767187686248,24.36883505,7.069e-05,2]
[400194764,1767187686431,2753.13,7.376e-05,2]
[400194765,1767187686647,2421.34257458,7.684e-05,2]
[400194766,1767187686677,331.78742542,7.684e-05,2]
[400194767,1767187686849,2753.13,7.991e-05,2]
[400194768,1767187687051,2113.92398421,8.298e-05,2]
[400194769,1767187687075,639.20601579,8.298e-05,2]
[400194770,1767187687279,2753.13,8.606e-05,2]
[400194771,1767187687470,1806.50539384,8.913e-05,2]
[400194772,1767187687492,946.62460616,8.913e-05,2]
[400194773,1767187687698,2753.13,9.22e-05,2]
[400194774,1767187687912,1499.08680347,9.528e-05,2]
[400194775,1767187687936,1254.04319653,9.528e-05,2]
[400194776,1767187688109,2753.13,9.835e-05,2]
[400194777,1767187688324,1191.6682131,0.00010142,2]
[400194778,1767187688348,1561.4617869,0.00010142,2]
[400194779,1767187688513,2753.13,0.0001045,2]
[400194780,1767187688719,884.24962273,0.00010757,2]
[400194781,1767187688745,1868.88037727,0.00010757,2]
[400194782,1767187688916,2753.13,0.00011065,2]
[400194783,1767187689123,576.83103236,0.00011372,2]
[400194784,1767187689149,2176.29896764,0.00011372,2]
[400194785,1767187689313,2753.13,0.00011679,2]
[400194786,1767187691815,-249.98999932,0.00012163,2]
[400194787,1767187693433,150.0,0.00012163,2]
[400194788,1767187693603,250.0,0.00012218,2]
[400194790,1767187707540,269.41244199,0.0001,2]
[400194791,1767187707562,2459.89089468,0.0001,2]
[400194792,1767187710405,267.6582619,0.000107,2]
[400194793,1767187711859,2471.29225305,0.00011665,2]
[400194794,1767187715183,-168.3644251,0.00011665,2]
[400194795,1767187758265,-4384.02332185,0.00011665,2]
[400194796,1767187758298,-323.35352168,0.00012142,2]
[400194797,1767187758331,-261.90279127,0.00012192,2]
[400194798,1767187758469,-61.4507304,0.00012192,2]
[400194799,1767187758502,-363.04112691,0.00012242,2]
[400194800,1767187758536,-323.35352167,0.00012242,2]
[400194801,1767187758569,-168.364426,0.00012277,2]
[400194802,1767187758603,-300.0,0.00012339,2]
[400194803,1767187760234,6493.18053376,0.0001233,2]
[400194804,1767187762367,170.72957077,0.00012163,2]
[400194805,1767187763083,150.0,0.00012163,2]
[400194806,1767187763241,150.0,0.00012218,2]
[400194807,1767187763396,150.0,0.00012273,2]
[400194808,1767187763544,150.0,0.00012327,2]
[400194809,1767187770726,303.68028551,0.0001224,2]
[400194810,1767187770751,6393.21531449,0.0001224,2]
[400194811,1767187777067,236.2092,0.0001224,2]
[400194812,1767187780571,185.85674822,0.00012242,2]
[400194813,1767187789831,211.26,0.00043183,120]
[400194814,1767187801308,300.0,0.00012339,2]
[400194815,1767187801349,1200.0,0.00012339,2]
[400194816,1767187802477,150.0,0.00012339,2]
[400194817,1767187803408,251.0,0.0001234,2]
[400194818,1767187808834,483.37295131,0.00012339,2]
[400194819,1767187822169,800.35578598,0.00012055,2]
[400194820,1767187822196,10000.01,0.00012055,2]
[400194821,1767187822222,7999.65421402,0.00012055,2]
[400194822,1767187823590,500.0,0.00012339,2]
[400194823,1767187823653,500.0,0.00012339,2]
[400194824,1767187823714,500.0,0.00012339,2]
[400194825,1767187823772,500.0,0.00012339,2]
[400194826,1767187823831,0.35578598,0.00012339,2]
[400194827,1767187823865,499.64421402,0.00012339,2]
[400194828,1767187823921,500.0,0.00012339,2]
[400194829,1767187823980,500.0,0.00012339,2]
[400194830,1767187824037,500.0,0.00012339,2]
[400194831,1767187824102,500.0,0.00012339,2]
[400194832,1767187824174,500.0,0.00012339,2]
[400194833,1767187824253,500.0,0.00012339,2]
[400194834,1767187824318,500.0,0.00012339,2]
[400194835,1767187824366,500.0,0.00012339,2]
[400194836,1767187824413,500.0,0.00012339,2]
[400194837,1767187824505,500.0,0.00012339,2]
[400194838,1767187824552,500.0,0.00012339,2]
[400194839,1767187824602,500.0,0.00012339,2]
[400194840,1767187824647,500.0,0.00012339,2]
[400194841,1767187824694,500.0,0.00012339,2]
[400194842,1767187824763,500.0,0.00012339,2]
[400194843,1767187824813,500.0,0.00012339,2]
[400194844,1767187824980,500.0,0.00012339,2]
[400194845,1767187825038,500.0,0.00012339,2]
[400194846,1767187825281,500.0,0.00012339,2]
[400194847,1767187825554,0.36578598,0.00012339,2]
[400194848,1767187825587,499.63421402,0.00012339,2]
[400194849,1767187825660,500.0,0.00012339,2]
[400194850,1767187825709,500.0,0.00012339,2]
[400194851,1767187825761,500.0,0.00012339,2]
[400194852,1767187825809,500.0,0.00012339,2]
[400194853,1767187825856,500.0,0.00012339,2]
[400194854,1767187825904,500.0,0.00012339,2]
[400194855,1767187825954,500.0,0.00012339,2]
[400194856,1767187826002,500.0,0.00012339,2]
[400194869,1767187831673,-18988.45417369,0.0001234,2]
[400194871,1767187831731,-3513.22526362,0.0001234,2]
[400194872,1767187831745,-3821.74756074,0.0001234,2]
[400194873,1767187831756,-423.04241379,0.0001234,2]
[400194874,1767187831792,-622.55672686,0.0001234,2]
[400194875,1767187831851,-254.72572641,0.0001234,2]
[400194876,1767187831862,-4444.35,0.0001234,2]
[400194877,1767187831909,-422.62790991,0.0001234,2]
[400194878,1767187831922,-287.06431718,0.0001234,2]
[400194884,1767187837785,-358.33485164,0.0001234,2]
[400194885,1767187837797,-254.18043806,0.0001234,2]
[400194886,1767187837843,-79136.49165566,0.0001234,2]
[400194887,1767187837858,-672.65078649,0.0001234,2]
[400194888,1767187837870,-1221.26746359,0.0001234,2]
[400194889,1767187837907,-2615.92995068,0.0001234,2]
[400194907,1767187839928,-690.62423953,0.0001234,2]
[400194909,1767187840535,-1.7e-07,0.0001234,2]
[400194910,1767187842547,500.0,0.00012339,2]
[400194912,1767187842593,500.0,0.00012339,2]
[400194914,1767187842644,500.0,0.00012339,2]
[400194915,1767187842690,500.0,0.00012339,2]
[400194916,1767187842739,500.0,0.00012339,2]
[400194917,1767187842784,500.0,0.00012339,2]
[400194918,1767187842829,500.0,0.00012339,2]
[400194919,1767187842879,500.0,0.00012339,2]
[400194920,1767187842931,500.0,0.00012339,2]
[400194921,1767187842980,500.0,0.00012339,2]
[400194922,1767187843025,500.0,0.00012339,2]
[400194923,1767187843080,0.37578598,0.00012339,2]
[400194924,1767187843113,499.62421402,0.00012339,2]
[400194925,1767187843165,500.0,0.00012339,2]
[400194926,1767187843213,500.0,0.00012339,2]
[400194927,1767187843265,500.0,0.00012339,2]
[400194928,1767187843314,500.0,0.00012339,2]
[400194929,1767187843364,500.0,0.00012339,2]
[400194930,1767187843412,500.0,0.00012339,2]
[400194931,1767187843465,500.0,0.00012339,2]
[400194932,1767187843515,500.0,0.00012339,2]
[400194934,1767187843589,500.0,0.00012339,2]
[400194936,1767187843642,500.0,0.00012339,2]
[400194937,1767187843689,500.0,0.00012339,2]
[400194938,1767187843739,500.0,0.00012339,2]